[Event "Titled Tuesday Blitz August 08 Early 2023"]
[White "Osinovsky, Stepan"]
[Black "TrompeterImEther"]
[WhiteFideId "4157354"]
[WhiteElo "2332"]
[BlackElo "2454"]
[Result "0-1"]
[Round "10"]
[TimeControl "180+1"]
[Date "2023.08.08"]
[WhiteClock "0:00:00"]
[BlackClock "0:01:35"]
[Board "122"]

1. e4 {[%clk 0:02:53]}  e5 {[%clk 0:02:58]} 2. Nf3 {[%clk 0:02:54]}  Nc6 {[%clk 0:02:59]} 3. Bb5 {[%clk 0:02:54]}  a6 {[%clk 0:02:59]} 4. Ba4 {[%clk 0:02:55]}  Nf6 {[%clk 0:02:59]} 5. O-O {[%clk 0:02:55]}  b5 {[%clk 0:02:59]} 6. Bb3 {[%clk 0:02:55]}  Bb7 {[%clk 0:03:00]} 7. Re1 {[%clk 0:02:50]}  Bc5 {[%clk 0:03:00]} 8. Nxe5 {[%clk 0:02:43]}  Nxe5 {[%clk 0:02:41]} 9. d4 {[%clk 0:02:43]}  Bxd4 {[%clk 0:02:42]} 10. Qxd4 {[%clk 0:02:42]}  d6 {[%clk 0:02:43]} 11. f4 {[%clk 0:02:25]}  c5 {[%clk 0:02:42]} 12. Qd1 {[%clk 0:02:21]}  c4 {[%clk 0:02:26]} 13. fxe5 {[%clk 0:02:11]}  dxe5 {[%clk 0:02:27]} 14. Qxd8+ {[%clk 0:01:19]}  Rxd8 {[%clk 0:02:28]} 15. Bxc4 {[%clk 0:01:19]}  bxc4 {[%clk 0:02:27]} 16. Nc3 {[%clk 0:01:16]}  O-O {[%clk 0:02:26]} 17. Kf2 {[%clk 0:01:05]}  Rd4 {[%clk 0:02:19]} 18. Be3 {[%clk 0:00:58]}  Nxe4+ {[%clk 0:02:17]} 19. Kg1 {[%clk 0:00:56]}  Rd7 {[%clk 0:01:54]} 20. Nxe4 {[%clk 0:00:54]}  Bxe4 {[%clk 0:01:55]} 21. Bc5 {[%clk 0:00:55]}  Rc8 {[%clk 0:01:55]} 22. Bb4 {[%clk 0:00:18]}  f5 {[%clk 0:01:47]} 23. Bc3 {[%clk 0:00:16]}  Rd5 {[%clk 0:01:46]} 24. Re2 {[%clk 0:00:15]}  Kf7 {[%clk 0:01:46]} 25. Rae1 {[%clk 0:00:16]}  Ke6 {[%clk 0:01:46]} 26. h3 {[%clk 0:00:15]}  Rcd8 {[%clk 0:01:46]} 27. Kf2 {[%clk 0:00:14]}  g6 {[%clk 0:01:45]} 28. g4 {[%clk 0:00:12]}  Rf8 {[%clk 0:01:38]} 29. Kg1 {[%clk 0:00:10]}  Rb5 {[%clk 0:01:37]} 30. a3 {[%clk 0:00:08]}  Rd8 {[%clk 0:01:36]} 31. Kh2 {[%clk 0:00:06]}  h5 {[%clk 0:01:36]} 32. Kg1 {[%clk 0:00:03]}  hxg4 {[%clk 0:01:35]} 33. hxg4 {[%clk 0:00:00]}  Rh8 {[%clk 0:01:35]} 0-1


[Site "https://www.chess.com"]

[Event "Titled Tuesday Blitz August 08 Early 2023"]
[White "Zaksaite, Salomeja"]
[Black "MateoReyes"]
[WhiteFideId "12801496"]
[WhiteElo "2327"]
[BlackElo "2449"]
[Result "0-1"]
[Round "10"]
[TimeControl "180+1"]
[Date "2023.08.08"]
[WhiteClock "0:00:42"]
[BlackClock "0:01:58"]
[Board "123"]

1. e4 {[%clk 0:03:00]}  c5 {[%clk 0:02:58]} 2. Nf3 {[%clk 0:03:00]}  d6 {[%clk 0:02:58]} 3. d4 {[%clk 0:02:59]}  cxd4 {[%clk 0:02:58]} 4. Nxd4 {[%clk 0:02:58]}  Nf6 {[%clk 0:02:58]} 5. Nc3 {[%clk 0:02:59]}  a6 {[%clk 0:02:58]} 6. Bc4 {[%clk 0:02:56]}  e6 {[%clk 0:02:58]} 7. Bb3 {[%clk 0:02:53]}  Be7 {[%clk 0:02:57]} 8. O-O {[%clk 0:02:41]}  Nc6 {[%clk 0:02:53]} 9. Be3 {[%clk 0:02:34]}  O-O {[%clk 0:02:53]} 10. Qf3 {[%clk 0:02:17]}  Qc7 {[%clk 0:02:51]} 11. Rad1 {[%clk 0:02:17]}  Nxd4 {[%clk 0:02:48]} 12. Bxd4 {[%clk 0:02:12]}  Bd7 {[%clk 0:02:46]} 13. Qg3 {[%clk 0:02:02]}  Bc6 {[%clk 0:02:44]} 14. e5 {[%clk 0:01:55]}  dxe5 {[%clk 0:02:40]} 15. Bxe5 {[%clk 0:01:54]}  Qb6 {[%clk 0:02:40]} 16. Bd6 {[%clk 0:01:48]}  Bxd6 {[%clk 0:02:36]} 17. Rxd6 {[%clk 0:01:47]}  Rad8 {[%clk 0:02:35]} 18. Rfd1 {[%clk 0:01:46]}  Rxd6 {[%clk 0:02:34]} 19. Qxd6 {[%clk 0:01:44]}  h6 {[%clk 0:02:24]} 20. Qd4 {[%clk 0:01:42]}  Qc7 {[%clk 0:02:20]} 21. Qd6 {[%clk 0:01:39]}  Qa5 {[%clk 0:02:19]} 22. Ne2 {[%clk 0:01:17]}  Qg5 {[%clk 0:02:07]} 23. Ng3 {[%clk 0:01:16]}  h5 {[%clk 0:02:02]} 24. f4 {[%clk 0:01:10]}  Qg6 {[%clk 0:01:59]} 25. Qe5 {[%clk 0:00:42]}  h4 {[%clk 0:01:58]} 0-1


[Site "https://www.chess.com"]

[Event "Titled Tuesday Blitz August 08 Early 2023"]
[White "Hrescak, Ivana"]
[Black "Harriott, Tyrell"]
[WhiteFideId "14613441"]
[BlackFideId "2086484"]
[WhiteElo "2236"]
[BlackElo "2423"]
[Result "0-1"]
[Round "10"]
[TimeControl "180+1"]
[Date "2023.08.08"]
[WhiteClock "0:00:00"]
[BlackClock "0:01:26"]
[Board "127"]

1. e4 {[%clk 0:03:00]}  d5 {[%clk 0:02:59]} 2. exd5 {[%clk 0:03:00]}  Nf6 {[%clk 0:02:59]} 3. d4 {[%clk 0:02:56]}  Qxd5 {[%clk 0:02:59]} 4. Nf3 {[%clk 0:02:50]}  Bg4 {[%clk 0:02:58]} 5. Be2 {[%clk 0:02:51]}  Nc6 {[%clk 0:02:58]} 6. h3 {[%clk 0:02:49]}  Qh5 {[%clk 0:02:50]} 7. O-O {[%clk 0:02:47]}  O-O-O {[%clk 0:02:47]} 8. hxg4 {[%clk 0:02:42]}  Nxg4 {[%clk 0:02:47]} 9. Bf4 {[%clk 0:02:24]}  e5 {[%clk 0:02:46]} 10. Nxe5 {[%clk 0:02:06]}  Ncxe5 {[%clk 0:02:45]} 11. Bxe5 {[%clk 0:02:03]}  f5 {[%clk 0:02:44]} 12. Nc3 {[%clk 0:01:48]}  Bd6 {[%clk 0:02:43]} 13. Bxd6 {[%clk 0:01:48]}  Rxd6 {[%clk 0:02:42]} 14. Bxg4 {[%clk 0:01:40]}  fxg4 {[%clk 0:02:42]} 15. f4 {[%clk 0:01:15]}  Qh4 {[%clk 0:02:28]} 16. Qe1 {[%clk 0:00:33]}  g3 {[%clk 0:02:27]} 17. Rf3 {[%clk 0:00:32]}  Qh2+ {[%clk 0:02:19]} 18. Kf1 {[%clk 0:00:32]}  Qh1+ {[%clk 0:02:19]} 19. Ke2 {[%clk 0:00:32]}  Re8+ {[%clk 0:02:17]} 20. Re3 {[%clk 0:00:28]}  Rxe3+ {[%clk 0:01:56]} 21. Kxe3 {[%clk 0:00:28]}  Re6+ {[%clk 0:01:55]} 22. Ne4 {[%clk 0:00:26]}  Qxg2 {[%clk 0:01:52]} 23. Kd3 {[%clk 0:00:05]}  h5 {[%clk 0:01:45]} 24. Qe3 {[%clk 0:00:04]}  h4 {[%clk 0:01:39]} 25. Re1 {[%clk 0:00:04]}  Kb8 {[%clk 0:01:32]} 26. f5 {[%clk 0:00:03]}  Re8 {[%clk 0:01:31]} 27. f6 {[%clk 0:00:01]}  gxf6 {[%clk 0:01:30]} 28. Qf4 {[%clk 0:00:00]}  a6 {[%clk 0:01:26]} 0-1


[Site "https://www.chess.com"]

[Event "Titled Tuesday Blitz August 08 Early 2023"]
[White "Ibadov, Dashgyn"]
[Black "Pavlidou, Ekaterini"]
[WhiteFideId "24107514"]
[BlackFideId "4213262"]
[WhiteElo "2513"]
[BlackElo "2326"]
[Result "0-1"]
[Round "10"]
[TimeControl "180+1"]
[Date "2023.08.08"]
[WhiteClock "0:00:00"]
[BlackClock "0:00:47"]
[Board "137"]

1. e4 {[%clk 0:02:57]}  c5 {[%clk 0:02:57]} 2. Nf3 {[%clk 0:02:57]}  Nc6 {[%clk 0:02:57]} 3. Bb5 {[%clk 0:02:56]}  Nf6 {[%clk 0:02:51]} 4. Nc3 {[%clk 0:02:55]}  Qc7 {[%clk 0:02:51]} 5. O-O {[%clk 0:02:55]}  a6 {[%clk 0:02:49]} 6. Bxc6 {[%clk 0:02:49]}  dxc6 {[%clk 0:02:48]} 7. d3 {[%clk 0:02:48]}  e5 {[%clk 0:02:48]} 8. Be3 {[%clk 0:02:25]}  h6 {[%clk 0:02:47]} 9. Nd2 {[%clk 0:02:24]}  g5 {[%clk 0:02:42]} 10. Nb3 {[%clk 0:02:20]}  b6 {[%clk 0:02:33]} 11. a4 {[%clk 0:02:14]}  a5 {[%clk 0:02:28]} 12. Ne2 {[%clk 0:02:04]}  Be6 {[%clk 0:02:09]} 13. Ng3 {[%clk 0:02:04]}  O-O-O {[%clk 0:01:46]} 14. Nd2 {[%clk 0:00:56]}  Ng4 {[%clk 0:01:38]} 15. Nf5 {[%clk 0:00:54]}  h5 {[%clk 0:01:29]} 16. Bxg5 {[%clk 0:00:52]}  f6 {[%clk 0:01:26]} 17. Bh4 {[%clk 0:00:51]}  Bxf5 {[%clk 0:01:24]} 18. exf5 {[%clk 0:00:51]}  e4 {[%clk 0:01:24]} 19. Bg3 {[%clk 0:00:50]}  Bd6 {[%clk 0:01:24]} 20. Nxe4 {[%clk 0:00:48]}  Bxg3 {[%clk 0:01:21]} 21. fxg3 {[%clk 0:00:36]}  Ne3 {[%clk 0:01:19]} 22. Qf3 {[%clk 0:00:35]}  Nxf1 {[%clk 0:01:18]} 23. Rxf1 {[%clk 0:00:36]}  Qe5 {[%clk 0:01:15]} 24. Nd2 {[%clk 0:00:17]}  Kb7 {[%clk 0:01:11]} 25. Nc4 {[%clk 0:00:17]}  Qd4+ {[%clk 0:01:10]} 26. Kh1 {[%clk 0:00:16]}  h4 {[%clk 0:01:08]} 27. gxh4 {[%clk 0:00:15]}  Rxh4 {[%clk 0:01:07]} 28. Re1 {[%clk 0:00:14]}  Rd7 {[%clk 0:01:01]} 29. h3 {[%clk 0:00:12]}  Rf4 {[%clk 0:00:59]} 30. Qg3 {[%clk 0:00:10]}  Qf2 {[%clk 0:00:57]} 31. Qxf2 {[%clk 0:00:10]}  Rxf2 {[%clk 0:00:57]} 32. Re6 {[%clk 0:00:08]}  Rxc2 {[%clk 0:00:54]} 33. Rxf6 {[%clk 0:00:08]}  Rxd3 {[%clk 0:00:54]} 34. Rf7+ {[%clk 0:00:08]}  Ka6 {[%clk 0:00:54]} 35. Ne5 {[%clk 0:00:08]}  Rd1+ {[%clk 0:00:53]} 36. Kh2 {[%clk 0:00:08]}  Rf1 {[%clk 0:00:52]} 37. Nxc6 {[%clk 0:00:06]}  b5 {[%clk 0:00:49]} 38. Nb8+ {[%clk 0:00:05]}  Kb6 {[%clk 0:00:49]} 39. Nd7+ {[%clk 0:00:06]}  Kc6 {[%clk 0:00:49]} 40. Ne5+ {[%clk 0:00:06]}  Kd5 {[%clk 0:00:49]} 41. Nf3 {[%clk 0:00:03]}  Rxf3 {[%clk 0:00:47]} 42. f6 {[%clk 0:00:00]}  Rff2 {[%clk 0:00:47]} 0-1


[Site "https://www.chess.com"]

[Event "Titled Tuesday Blitz August 08 Early 2023"]
[White "Chor, Kevin"]
[Black "Konenkin, Dmitry"]
[WhiteFideId "2090740"]
[BlackFideId "4185781"]
[WhiteElo "2498"]
[BlackElo "2303"]
[Result "1-0"]
[Round "10"]
[TimeControl "180+1"]
[Date "2023.08.08"]
[WhiteClock "0:00:10"]
[BlackClock "0:00:05"]
[Board "138"]

1. e4 {[%clk 0:03:00]}  d6 {[%clk 0:03:00]} 2. d4 {[%clk 0:02:59]}  Nf6 {[%clk 0:03:00]} 3. Nc3 {[%clk 0:02:58]}  e5 {[%clk 0:03:01]} 4. f4 {[%clk 0:02:58]}  Nbd7 {[%clk 0:02:58]} 5. Nf3 {[%clk 0:02:57]}  exd4 {[%clk 0:02:58]} 6. Qxd4 {[%clk 0:02:58]}  c6 {[%clk 0:02:58]} 7. Be3 {[%clk 0:02:58]}  d5 {[%clk 0:02:58]} 8. e5 {[%clk 0:02:58]}  Bc5 {[%clk 0:02:58]} 9. Qd2 {[%clk 0:02:58]}  Ng4 {[%clk 0:02:35]} 10. Bxc5 {[%clk 0:02:53]}  Nxc5 {[%clk 0:02:36]} 11. h3 {[%clk 0:02:50]}  Nh6 {[%clk 0:02:35]} 12. g4 {[%clk 0:02:50]}  O-O {[%clk 0:02:30]} 13. O-O-O {[%clk 0:02:48]}  Qa5 {[%clk 0:02:27]} 14. Kb1 {[%clk 0:02:44]}  Kh8 {[%clk 0:02:11]} 15. f5 {[%clk 0:02:38]}  Ng8 {[%clk 0:01:54]} 16. f6 {[%clk 0:01:39]}  g6 {[%clk 0:01:31]} 17. h4 {[%clk 0:00:57]}  Bxg4 {[%clk 0:01:30]} 18. Be2 {[%clk 0:00:53]}  h5 {[%clk 0:01:13]} 19. Rdg1 {[%clk 0:00:46]}  Bf5 {[%clk 0:00:43]} 20. Nd4 {[%clk 0:00:39]}  Be6 {[%clk 0:00:20]} 21. Bxh5 {[%clk 0:00:33]}  Na4 {[%clk 0:00:15]} 22. Bxg6 {[%clk 0:00:24]}  Nxc3+ {[%clk 0:00:16]} 23. bxc3 {[%clk 0:00:24]}  fxg6 {[%clk 0:00:14]} 24. Rxg6 {[%clk 0:00:21]}  Rf7 {[%clk 0:00:14]} 25. Nxe6 {[%clk 0:00:18]}  Re8 {[%clk 0:00:08]} 26. Rhg1 {[%clk 0:00:16]}  Qb6+ {[%clk 0:00:05]} 27. Kc1 {[%clk 0:00:15]}  c5 {[%clk 0:00:04]} 28. Rxg8+ {[%clk 0:00:08]}  Rxg8 {[%clk 0:00:05]} 29. Qh6+ {[%clk 0:00:09]}  Rh7 {[%clk 0:00:05]} 30. Rxg8+ {[%clk 0:00:09]}  Kxg8 {[%clk 0:00:05]} 31. Qf8# {[%clk 0:00:10]} 1-0


[Site "https://www.chess.com"]

[Event "Titled Tuesday Blitz August 08 Early 2023"]
[White "Player, Edmund C"]
[Black "Novikov, Evgenij"]
[WhiteFideId "406520"]
[BlackFideId "4125380"]
[WhiteElo "2302"]
[BlackElo "2426"]
[Result "0-1"]
[Round "10"]
[TimeControl "180+1"]
[Date "2023.08.08"]
[WhiteClock "0:00:06"]
[BlackClock "0:00:03"]
[Board "140"]

1. e4 {[%clk 0:02:57]}  c5 {[%clk 0:02:57]} 2. Nf3 {[%clk 0:02:56]}  Nc6 {[%clk 0:02:57]} 3. Bb5 {[%clk 0:02:56]}  g6 {[%clk 0:02:56]} 4. Bxc6 {[%clk 0:02:56]}  dxc6 {[%clk 0:02:57]} 5. d3 {[%clk 0:02:55]}  Bg7 {[%clk 0:02:57]} 6. h3 {[%clk 0:02:54]}  b6 {[%clk 0:02:51]} 7. Nc3 {[%clk 0:02:54]}  e5 {[%clk 0:02:50]} 8. a4 {[%clk 0:02:52]}  a5 {[%clk 0:02:49]} 9. Nh2 {[%clk 0:02:47]}  Nf6 {[%clk 0:02:46]} 10. f4 {[%clk 0:02:43]}  exf4 {[%clk 0:02:47]} 11. Bxf4 {[%clk 0:02:43]}  Nh5 {[%clk 0:02:41]} 12. Be3 {[%clk 0:02:18]}  Ng3 {[%clk 0:02:10]} 13. Rg1 {[%clk 0:02:17]}  h5 {[%clk 0:02:06]} 14. Bf2 {[%clk 0:01:46]}  Qd6 {[%clk 0:01:57]} 15. Qf3 {[%clk 0:01:38]}  h4 {[%clk 0:01:42]} 16. Nf1 {[%clk 0:01:31]}  Nxf1 {[%clk 0:01:34]} 17. Rxf1 {[%clk 0:01:32]}  Be6 {[%clk 0:01:34]} 18. Be3 {[%clk 0:01:25]}  O-O-O {[%clk 0:01:31]} 19. Kf2 {[%clk 0:01:09]}  f5 {[%clk 0:01:23]} 20. Kg1 {[%clk 0:00:54]}  Rdf8 {[%clk 0:01:17]} 21. exf5 {[%clk 0:00:52]}  gxf5 {[%clk 0:01:15]} 22. Bf4 {[%clk 0:00:42]}  Qd7 {[%clk 0:01:12]} 23. Rae1 {[%clk 0:00:33]}  Bd4+ {[%clk 0:01:11]} 24. Kh1 {[%clk 0:00:32]}  Rhg8 {[%clk 0:01:08]} 25. Nb5 {[%clk 0:00:30]}  Bd5 {[%clk 0:01:03]} 26. Nd6+ {[%clk 0:00:22]}  Kb8 {[%clk 0:00:46]} 27. Nb5+ {[%clk 0:00:14]}  Ka8 {[%clk 0:00:44]} 28. Nc7+ {[%clk 0:00:14]}  Kb7 {[%clk 0:00:41]} 29. Nxd5 {[%clk 0:00:13]}  cxd5 {[%clk 0:00:36]} 30. c3 {[%clk 0:00:10]}  Bf6 {[%clk 0:00:35]} 31. Bh6 {[%clk 0:00:08]}  Re8 {[%clk 0:00:33]} 32. Rxe8 {[%clk 0:00:07]}  Rxe8 {[%clk 0:00:34]} 33. Bf4 {[%clk 0:00:06]}  Ka6 {[%clk 0:00:29]} 34. Rg1 {[%clk 0:00:04]}  Qxa4 {[%clk 0:00:29]} 35. Rf1 {[%clk 0:00:04]}  Qd7 {[%clk 0:00:28]} 36. Rg1 {[%clk 0:00:03]}  d4 {[%clk 0:00:27]} 37. c4 {[%clk 0:00:03]}  Qb7 {[%clk 0:00:26]} 38. Qh5 {[%clk 0:00:02]}  Qd7 {[%clk 0:00:20]} 39. Qg6 {[%clk 0:00:02]}  Be5 {[%clk 0:00:20]} 40. Rf1 {[%clk 0:00:02]}  Bxf4 {[%clk 0:00:19]} 41. Rxf4 {[%clk 0:00:03]}  Re1+ {[%clk 0:00:18]} 42. Kh2 {[%clk 0:00:04]}  Qc7 {[%clk 0:00:18]} 43. Qxf5 {[%clk 0:00:04]}  Rf1 {[%clk 0:00:16]} 44. g3 {[%clk 0:00:04]}  hxg3+ {[%clk 0:00:14]} 45. Kxg3 {[%clk 0:00:04]}  Qg7+ {[%clk 0:00:12]} 46. Qg4 {[%clk 0:00:04]}  Qc7 {[%clk 0:00:09]} 47. h4 {[%clk 0:00:04]}  Rg1+ {[%clk 0:00:08]} 48. Kh3 {[%clk 0:00:04]}  Rxg4 {[%clk 0:00:08]} 49. Kxg4 {[%clk 0:00:05]}  Qg7+ {[%clk 0:00:08]} 50. Kh3 {[%clk 0:00:05]}  Qg6 {[%clk 0:00:08]} 51. Rg4 {[%clk 0:00:05]}  Qxd3+ {[%clk 0:00:07]} 52. Rg3 {[%clk 0:00:06]}  Qxc4 {[%clk 0:00:07]} 53. h5 {[%clk 0:00:06]}  Qe6+ {[%clk 0:00:07]} 54. Kh4 {[%clk 0:00:07]}  Qf6+ {[%clk 0:00:07]} 55. Rg5 {[%clk 0:00:06]}  d3 {[%clk 0:00:07]} 56. Kg4 {[%clk 0:00:05]}  d2 {[%clk 0:00:06]} 57. Rg6 {[%clk 0:00:06]}  d1=Q+ {[%clk 0:00:06]} 58. Kh3 {[%clk 0:00:06]}  Qf5+ {[%clk 0:00:05]} 59. Rg4 {[%clk 0:00:05]}  Qdxg4+ {[%clk 0:00:05]} 60. Kh2 {[%clk 0:00:06]}  Qff4+ {[%clk 0:00:04]} 61. Kh1 {[%clk 0:00:06]}  Qgf3+ {[%clk 0:00:04]} 62. Kg1 {[%clk 0:00:06]}  Q4g3# {[%clk 0:00:03]} 0-1


[Site "https://www.chess.com"]

[Event "Titled Tuesday Blitz August 08 Early 2023"]
[White "EsmeraldasAnderson03"]
[Black "Mirzanurov, Bulat"]
[BlackFideId "4184521"]
[WhiteElo "2384"]
[BlackElo "2186"]
[Result "0-1"]
[Round "10"]
[TimeControl "180+1"]
[Date "2023.08.08"]
[WhiteClock "0:00:09"]
[BlackClock "0:00:09"]
[Board "143"]

1. d4 {[%clk 0:03:00]}  d5 {[%clk 0:02:58]} 2. Nf3 {[%clk 0:03:00]}  Nf6 {[%clk 0:02:57]} 3. c4 {[%clk 0:02:59]}  e6 {[%clk 0:02:52]} 4. cxd5 {[%clk 0:03:00]}  exd5 {[%clk 0:02:51]} 5. Nc3 {[%clk 0:03:00]}  c6 {[%clk 0:02:51]} 6. Qc2 {[%clk 0:03:01]}  Be7 {[%clk 0:02:49]} 7. Bg5 {[%clk 0:03:01]}  Be6 {[%clk 0:02:44]} 8. e3 {[%clk 0:03:01]}  Nbd7 {[%clk 0:02:41]} 9. Bd3 {[%clk 0:03:02]}  h6 {[%clk 0:02:40]} 10. Bh4 {[%clk 0:03:01]}  Qc7 {[%clk 0:02:40]} 11. O-O {[%clk 0:02:57]}  O-O {[%clk 0:02:39]} 12. Rfc1 {[%clk 0:02:54]}  a6 {[%clk 0:02:34]} 13. Rab1 {[%clk 0:02:52]}  Nb6 {[%clk 0:02:19]} 14. b4 {[%clk 0:02:43]}  Nc4 {[%clk 0:02:18]} 15. Bxc4 {[%clk 0:02:43]}  dxc4 {[%clk 0:02:18]} 16. a4 {[%clk 0:02:44]}  b5 {[%clk 0:02:17]} 17. a5 {[%clk 0:02:43]}  Qd7 {[%clk 0:02:09]} 18. Ne5 {[%clk 0:02:35]}  Qc8 {[%clk 0:01:58]} 19. e4 {[%clk 0:02:24]}  Rd8 {[%clk 0:01:47]} 20. Rd1 {[%clk 0:02:05]}  Qc7 {[%clk 0:01:35]} 21. Nxc6 {[%clk 0:01:44]}  Qxc6 {[%clk 0:01:33]} 22. d5 {[%clk 0:01:45]}  Qd7 {[%clk 0:01:22]} 23. dxe6 {[%clk 0:01:38]}  Qxe6 {[%clk 0:01:21]} 24. Bg3 {[%clk 0:01:35]}  Bf8 {[%clk 0:01:00]} 25. f4 {[%clk 0:01:32]}  Rxd1+ {[%clk 0:00:51]} 26. Rxd1 {[%clk 0:01:21]}  Bxb4 {[%clk 0:00:50]} 27. f5 {[%clk 0:01:21]}  Qe7 {[%clk 0:00:37]} 28. e5 {[%clk 0:01:18]}  Ng4 {[%clk 0:00:36]} 29. Nd5 {[%clk 0:01:10]}  Qc5+ {[%clk 0:00:35]} 30. Kh1 {[%clk 0:01:11]}  Bxa5 {[%clk 0:00:27]} 31. h3 {[%clk 0:01:07]}  Ne3 {[%clk 0:00:25]} 32. Qf2 {[%clk 0:01:07]}  Bb6 {[%clk 0:00:17]} 33. Nxb6 {[%clk 0:00:36]}  Qxb6 {[%clk 0:00:18]} 34. Rd6 {[%clk 0:00:27]}  Qa7 {[%clk 0:00:15]} 35. Bf4 {[%clk 0:00:25]}  Nxf5 {[%clk 0:00:14]} 36. Qf3 {[%clk 0:00:17]}  Nxd6 {[%clk 0:00:12]} 37. exd6 {[%clk 0:00:18]}  Rd8 {[%clk 0:00:12]} 38. Qg3 {[%clk 0:00:18]}  Kh7 {[%clk 0:00:09]} 39. Qf3 {[%clk 0:00:15]}  Qd7 {[%clk 0:00:08]} 40. Qe4+ {[%clk 0:00:15]}  f5 {[%clk 0:00:08]} 41. Qd5 {[%clk 0:00:15]}  Re8 {[%clk 0:00:08]} 42. Kh2 {[%clk 0:00:15]}  c3 {[%clk 0:00:09]} 43. Qc5 {[%clk 0:00:15]}  Rc8 {[%clk 0:00:09]} 44. Qb6 {[%clk 0:00:12]}  c2 {[%clk 0:00:09]} 45. Qg1 {[%clk 0:00:09]}  Rc6 {[%clk 0:00:09]} 46. Qf1 {[%clk 0:00:08]}  Rxd6 {[%clk 0:00:09]} 47. Bg3 {[%clk 0:00:08]}  Rd1 {[%clk 0:00:09]} 48. Qf2 {[%clk 0:00:08]}  c1=Q {[%clk 0:00:09]} 49. Qxf5+ {[%clk 0:00:09]}  Qxf5 {[%clk 0:00:09]} 0-1


[Site "https://www.chess.com"]

[Event "Titled Tuesday Blitz August 08 Early 2023"]
[White "Tharushi, T H D Niklesha"]
[Black "Villuendas Valero, Adrian"]
[WhiteFideId "9918264"]
[BlackFideId "2262460"]
[WhiteElo "2081"]
[BlackElo "2324"]
[Result "0-1"]
[Round "10"]
[TimeControl "180+1"]
[Date "2023.08.08"]
[WhiteClock "0:00:02"]
[BlackClock "0:00:17"]
[Board "145"]

1. d4 {[%clk 0:02:55]}  d6 {[%clk 0:02:59]} 2. c4 {[%clk 0:02:53]}  e5 {[%clk 0:02:59]} 3. d5 {[%clk 0:02:49]}  f5 {[%clk 0:02:58]} 4. Nc3 {[%clk 0:02:48]}  Nf6 {[%clk 0:02:57]} 5. Bg5 {[%clk 0:02:46]}  Be7 {[%clk 0:02:54]} 6. g3 {[%clk 0:02:43]}  O-O {[%clk 0:02:51]} 7. Bg2 {[%clk 0:02:43]}  Na6 {[%clk 0:02:49]} 8. a3 {[%clk 0:02:42]}  h6 {[%clk 0:02:47]} 9. Bc1 {[%clk 0:02:39]}  Nc5 {[%clk 0:02:36]} 10. b4 {[%clk 0:02:37]}  Nce4 {[%clk 0:02:37]} 11. Bb2 {[%clk 0:02:33]}  a5 {[%clk 0:02:30]} 12. e3 {[%clk 0:02:27]}  Nxc3 {[%clk 0:02:21]} 13. Bxc3 {[%clk 0:02:26]}  e4 {[%clk 0:02:21]} 14. Ne2 {[%clk 0:02:24]}  Ng4 {[%clk 0:02:12]} 15. h3 {[%clk 0:02:06]}  Ne5 {[%clk 0:02:11]} 16. Nf4 {[%clk 0:01:53]}  g5 {[%clk 0:01:56]} 17. Ne6 {[%clk 0:01:30]}  Bxe6 {[%clk 0:01:51]} 18. dxe6 {[%clk 0:01:28]}  Nd3+ {[%clk 0:01:49]} 19. Kf1 {[%clk 0:01:24]}  Bf6 {[%clk 0:01:49]} 20. Bd4 {[%clk 0:01:05]}  c5 {[%clk 0:01:41]} 21. bxc5 {[%clk 0:00:55]}  dxc5 {[%clk 0:01:42]} 22. Bxf6 {[%clk 0:00:53]}  Qxf6 {[%clk 0:01:41]} 23. Rb1 {[%clk 0:00:54]}  Qxe6 {[%clk 0:01:35]} 24. Rxb7 {[%clk 0:00:52]}  Rfb8 {[%clk 0:01:14]} 25. Rb1 {[%clk 0:00:36]}  Qxc4 {[%clk 0:00:56]} 26. Kg1 {[%clk 0:00:34]}  Qa2 {[%clk 0:00:43]} 27. Rxb8+ {[%clk 0:00:20]}  Rxb8 {[%clk 0:00:43]} 28. Qh5 {[%clk 0:00:18]}  Kg7 {[%clk 0:00:27]} 29. g4 {[%clk 0:00:14]}  Qxf2+ {[%clk 0:00:25]} 30. Kh2 {[%clk 0:00:14]}  Rb2 {[%clk 0:00:26]} 31. Rg1 {[%clk 0:00:11]}  f4 {[%clk 0:00:25]} 32. exf4 {[%clk 0:00:09]}  Nxf4 {[%clk 0:00:26]} 33. Qe8 {[%clk 0:00:08]}  Nxg2 {[%clk 0:00:19]} 34. Qe7+ {[%clk 0:00:04]}  Qf7 {[%clk 0:00:18]} 35. Qe5+ {[%clk 0:00:04]}  Qf6 {[%clk 0:00:18]} 36. Qxf6+ {[%clk 0:00:04]}  Kxf6 {[%clk 0:00:18]} 37. Rxg2 {[%clk 0:00:05]}  Rxg2+ {[%clk 0:00:18]} 38. Kxg2 {[%clk 0:00:05]}  Ke5 {[%clk 0:00:18]} 39. Kf2 {[%clk 0:00:05]}  Kd4 {[%clk 0:00:17]} 40. Ke2 {[%clk 0:00:05]}  e3 {[%clk 0:00:17]} 41. a4 {[%clk 0:00:02]}  c4 {[%clk 0:00:17]} 0-1


[Site "https://www.chess.com"]

[Event "Titled Tuesday Blitz August 08 Early 2023"]
[White "Sailer, Mike"]
[Black "Czerw, Dawid"]
[WhiteFideId "2012901"]
[BlackFideId "1145746"]
[WhiteElo "2181"]
[BlackElo "2532"]
[Result "0-1"]
[Round "10"]
[TimeControl "180+1"]
[Date "2023.08.08"]
[WhiteClock "0:00:00"]
[BlackClock "0:02:38"]
[Board "146"]

1. d4 {[%clk 0:02:51]}  c5 {[%clk 0:03:00]} 2. d5 {[%clk 0:02:50]}  e5 {[%clk 0:03:01]} 3. e4 {[%clk 0:02:48]}  d6 {[%clk 0:03:01]} 4. Bb5+ {[%clk 0:02:45]}  Bd7 {[%clk 0:03:01]} 5. a4 {[%clk 0:02:44]}  Be7 {[%clk 0:03:01]} 6. Nc3 {[%clk 0:02:39]}  a6 {[%clk 0:03:01]} 7. Bxd7+ {[%clk 0:02:39]}  Nxd7 {[%clk 0:03:02]} 8. Nge2 {[%clk 0:02:40]}  Bg5 {[%clk 0:03:02]} 9. O-O {[%clk 0:02:39]}  Nh6 {[%clk 0:03:01]} 10. Ng3 {[%clk 0:02:39]}  O-O {[%clk 0:03:00]} 11. Qf3 {[%clk 0:02:25]}  f5 {[%clk 0:02:59]} 12. exf5 {[%clk 0:02:20]}  g6 {[%clk 0:02:59]} 13. f6 {[%clk 0:01:59]}  Bxc1 {[%clk 0:02:53]} 14. Raxc1 {[%clk 0:01:54]}  Nxf6 {[%clk 0:02:54]} 15. h3 {[%clk 0:01:46]}  Nh5 {[%clk 0:02:48]} 16. Qe3 {[%clk 0:01:42]}  Nf4 {[%clk 0:02:48]} 17. Rcd1 {[%clk 0:01:26]}  Qh4 {[%clk 0:02:46]} 18. Nce4 {[%clk 0:01:12]}  Rad8 {[%clk 0:02:43]} 19. Ne2 {[%clk 0:00:52]}  Nf5 {[%clk 0:02:40]} 20. Qf3 {[%clk 0:00:42]}  Nxe2+ {[%clk 0:02:37]} 21. Qxe2 {[%clk 0:00:42]}  Nd4 {[%clk 0:02:38]} 22. Qd3 {[%clk 0:00:17]}  c4 {[%clk 0:02:38]} 23. Qe3 {[%clk 0:00:06]}  Nxc2 {[%clk 0:02:38]} 24. Qe2 {[%clk 0:00:00]}  Nd4 {[%clk 0:02:38]} 0-1


[Site "https://www.chess.com"]